fUSD/lending_fUSD_20251221
["ID","MTS","AMOUNT","RATE_DAILY","PERIOD"]
[399438356,1766353842013,-1618.06,0.00014958,2]
[399438357,1766353842023,-1170.7357374,0.00015037,2]
[399438358,1766353842032,-500.0,0.00015048,2]
[399438359,1766353842042,-307.67,0.000152,2]
[399438360,1766353842051,-1618.06,0.00015232,2]
[399438361,1766353842061,-689.39447173,0.00015255,2]
[399438362,1766353842071,-666.07222089,0.00015287,2]
[399438363,1766353842080,-158.38653664,0.00015287,2]
[399438364,1766353842089,-1500.98434959,0.00015287,2]
[399438365,1766353842098,-936.03619538,0.00015287,2]
[399438366,1766353842108,-2000.0,0.00015287,2]
[399438367,1766353842118,-2000.0,0.00015287,2]
[399438368,1766353842128,-2000.0,0.00015287,2]
[399438369,1766353842138,-1071.82272799,0.00015287,2]
[399438370,1766353842147,-629.20788422,0.00015287,2]
[399438371,1766353842156,-2000.0,0.00015287,2]
[399438372,1766353842165,-889.58800714,0.00015287,2]
[399438373,1766353842175,-2000.0,0.00015287,2]
[399438374,1766353842185,-458.37108423,0.00015287,2]
[399438375,1766353842195,-1252.0,0.0001531,2]
[399438376,1766353842205,-4609.0,0.00015335,2]
[399438377,1766353842214,-151.0,0.00015493,2]
[399438378,1766353842224,-23647.07950569,0.00015496,2]
[399438379,1766353842233,-29862.54378872,0.00015496,2]
[399438380,1766353842242,-1618.06,0.00015506,2]
[399438381,1766353842251,-1618.22,0.0001578,2]
[399438382,1766353842260,-2500.0,0.00015835,2]
[399438383,1766353842269,-2500.0,0.00015835,2]
[399438384,1766353842279,-2500.0,0.00015835,2]
[399438385,1766353842288,-2500.0,0.00015835,2]
[399438386,1766353842297,-2500.0,0.00015835,2]
[399438387,1766353842306,-1170.7357374,0.00015969,2]
[399438388,1766353842315,-307.67,0.00016045,2]
[399438389,1766353842326,-782.41597288,0.00016049,2]
[399438390,1766353842335,-200.0,0.00016149,2]
[399438391,1766353842344,-207.4,0.00016149,2]
[399438392,1766353842353,-215.0738,0.00016149,2]
[399438393,1766353842363,-223.0315306,0.00016149,2]
[399438394,1766353842372,-151.0,0.00016149,2]
[399438395,1766353842381,-231.28369723,0.00016149,2]
[399438396,1766353842391,-156.587,0.00016149,2]
[399438397,1766353842400,-239.84119403,0.00016149,2]
[399438398,1766353842409,-248.71531821,0.00016149,2]
[399438399,1766353842418,-162.380719,0.00016149,2]
[399438400,1766353842427,-257.91778498,0.00016149,2]
[399438401,1766353842436,-153.50930745,0.00016149,2]
[399438402,1766353842445,-267.46074303,0.00016149,2]
[399438403,1766353842454,-151.0,0.00016149,2]
[399438404,1766353842463,-300.0,0.00016149,2]
[399438405,1766353842472,-23647.07950569,0.00016198,2]
[399438406,1766353842482,-29862.54378872,0.00016198,2]
[399438407,1766353842491,-10000.0,0.00016338,2]
[399438408,1766353842500,-500.0,0.00016381,2]
[399438409,1766353842509,-500.0,0.00016381,2]
[399438410,1766353842519,-500.0,0.00016381,2]
[399438411,1766353842528,-500.0,0.00016381,2]
[399438412,1766353842538,-3000.0,0.00016383,2]
[399438413,1766353842547,-2351.34245587,0.00016383,2]
[399438414,1766353842556,-1004.80601418,0.00016383,2]
[399438415,1766353842566,-1503.160494,0.00016383,2]
[399438416,1766353842575,-3000.0,0.00016383,2]
[399438417,1766353842585,-500.00000003,0.00016438,2]
[399438418,1766353842595,-1767.29200412,0.00016438,2]
[399438419,1766353842604,-1767.29200412,0.00016438,2]
[399438420,1766353842613,-1767.29200412,0.00016438,2]
[399438421,1766353842623,-1767.29200412,0.00016438,2]
[399438422,1766353842632,-1767.29200412,0.00016438,2]
[399438423,1766353842641,-1767.29200412,0.00016438,2]
[399438424,1766353842651,-1767.29200412,0.00016438,2]
[399438425,1766353842660,-1767.29200412,0.00016438,2]
[399438426,1766353842671,-1767.29200412,0.00016438,2]
[399438427,1766353842681,-1767.29200412,0.00016438,2]
[399438428,1766353842691,-1767.29200412,0.00016438,2]
[399438429,1766353842700,-1767.29200412,0.00016438,2]
[399438430,1766353842710,-1767.29200412,0.00016438,2]
[399438431,1766353842719,-1767.29200412,0.00016438,2]
[399438432,1766353842729,-1767.29200412,0.00016438,2]
[399438434,1766353842739,-1767.29200412,0.00016438,2]
[399438435,1766353842748,-1767.29200412,0.00016438,2]
[399438436,1766353842757,-1767.29200412,0.00016438,2]
[399438437,1766353842767,-1767.29200412,0.00016438,2]
[399438438,1766353842776,-1767.29200412,0.00016438,2]
[399438439,1766353842785,-1767.29200412,0.00016438,2]
[399438440,1766353842794,-1767.29200412,0.00016438,2]
[399438441,1766353842803,-1767.29200412,0.00016438,2]
[399438442,1766353842813,-1767.29200412,0.00016438,2]
[399438443,1766353842822,-1767.29200412,0.00016438,2]
[399438444,1766353842831,-1767.29200412,0.00016438,2]
[399438445,1766353842840,-1767.29200412,0.00016438,2]
[399438446,1766353842849,-1767.29200412,0.00016438,2]
[399438447,1766353842858,-1767.29200412,0.00016438,2]
[399438448,1766353842868,-1767.29200412,0.00016438,2]
[399438449,1766353842877,-1767.29200412,0.00016438,2]
[399438450,1766353842886,-1767.29200412,0.00016438,2]
[399438451,1766353842895,-1767.29200412,0.00016438,2]
[399438452,1766353842905,-1767.29200412,0.00016438,2]
[399438453,1766353842915,-1767.29200412,0.00016438,2]
[399438454,1766353842923,-1767.29200412,0.00016438,2]
[399438455,1766353842933,-1767.29200412,0.00016438,2]
[399438456,1766353842942,-1767.29200412,0.00016438,2]
[399438457,1766353842951,-1767.29200412,0.00016438,2]
[399438458,1766353842960,-1767.29200412,0.00016438,2]
[399438459,1766353842969,-1767.29200412,0.00016438,2]
[399438460,1766353842978,-1767.29200412,0.00016438,2]
[399438461,1766353842987,-1767.29200412,0.00016438,2]
[399438462,1766353842996,-1767.29200412,0.00016438,2]
[399438463,1766353843005,-1767.29200412,0.00016438,2]
[399438464,1766353843014,-1767.29200412,0.00016438,2]
[399438465,1766353843023,-1767.29200412,0.00016438,2]
[399438466,1766353843032,-1767.29200412,0.00016438,2]
[399438467,1766353843042,-1767.29200412,0.00016438,2]
[399438468,1766353843052,-1767.29200412,0.00016438,2]
[399438469,1766353843061,-1767.29200412,0.00016438,2]
[399438470,1766353843070,-1767.29200412,0.00016438,2]
[399438471,1766353843080,-1767.29200412,0.00016438,2]
[399438472,1766353843089,-1767.29200412,0.00016438,2]
[399438473,1766353843099,-1767.29200412,0.00016438,2]
[399438474,1766353843108,-1767.29200412,0.00016438,2]
[399438475,1766353843117,-1767.29200412,0.00016438,2]
[399438476,1766353843127,-1749.61908409,0.00016438,2]
[399438477,1766353843138,-1749.61908409,0.00016438,2]
[399438478,1766353843147,-1749.61908409,0.00016438,2]
[399438479,1766353843156,-1749.61908409,0.00016438,2]
[399438480,1766353843165,-1749.61908409,0.00016438,2]
[399438481,1766353843175,-1749.61908409,0.00016438,2]
[399438482,1766353843184,-1749.61908409,0.00016438,2]
[399438483,1766353843193,-1749.61908409,0.00016438,2]
[399438484,1766353843203,-1749.61908409,0.00016438,2]
[399438485,1766353843212,-1749.61908409,0.00016438,2]
[399438486,1766353843221,-1749.61908409,0.00016438,2]
[399438487,1766353843230,-1749.61908409,0.00016438,2]
[399438488,1766353843239,-1749.61908409,0.00016438,2]
[399438489,1766353843249,-1749.61908409,0.00016438,2]
[399438490,1766353843259,-1749.61908409,0.00016438,2]
[399438491,1766353843268,-1749.61908409,0.00016438,2]
[399438492,1766353843278,-1749.61908409,0.00016438,2]
[399438493,1766353843287,-1749.61908409,0.00016438,2]
[399438494,1766353843297,-1749.61908409,0.00016438,2]
[399438495,1766353843307,-1749.61908409,0.00016438,2]
[399438496,1766353843316,-1749.61908409,0.00016438,2]
[399438497,1766353843325,-1749.61908409,0.00016438,2]
[399438498,1766353843334,-1749.61908409,0.00016438,2]
[399438499,1766353843343,-1749.61908409,0.00016438,2]
[399438500,1766353843352,-1749.61908409,0.00016438,2]
[399438501,1766353843361,-1749.61908409,0.00016438,2]
[399438502,1766353843370,-1749.61908409,0.00016438,2]
[399438503,1766353843379,-1749.61908409,0.00016438,2]
[399438504,1766353843388,-2624.42862613,0.00016438,2]
[399438505,1766353843397,-874.80954206,0.00016438,2]
[399438506,1766353843406,-500.0,0.00016438,2]
[399438507,1766353843415,-500.0,0.00016438,2]
[399438508,1766353843424,-500.0,0.00016438,2]
[399438509,1766353843433,-489.6,0.00016438,2]
[399438510,1766353843443,-12201.84,0.00016438,2]
[399438511,1766353843451,-801.71075194,0.00016438,2]
[399438512,1766353843461,-500.0,0.00016473,2]
[399438513,1766353843470,-500.0,0.00016473,2]
[399438514,1766353843479,-500.0,0.00016473,2]
[399438515,1766353843488,-500.0,0.00016473,2]
[399438516,1766353843497,-500.0,0.00016473,2]
[399438517,1766353843507,-500.0,0.00016473,2]
[399438518,1766353843516,-500.0,0.00016473,2]
[399438519,1766353843525,-500.0,0.00016473,2]
[399438520,1766353843534,-500.0,0.00016473,2]
[399438521,1766353843544,-500.0,0.00016473,2]
[399438522,1766353843553,-500.0,0.00016473,2]
[399438523,1766353843747,-500.0,0.00016473,2]
[399438524,1766353843785,-500.0,0.00016473,2]
[399438525,1766353843795,-500.0,0.00016473,2]
[399438526,1766353843805,-500.0,0.00016473,2]
[399438527,1766353843815,-500.0,0.00016473,2]
[399438528,1766353843825,-518.86476464,0.00016473,2]
[399438529,1766353843835,-334.60508476,0.00016473,2]
[399438530,1766353843845,-500.0,0.00016473,2]
[399438531,1766353843854,-500.0,0.00016473,2]
[399438532,1766353843864,-570.29356194,0.00016473,2]
[399438533,1766353843873,-500.0,0.00016473,2]
[399438534,1766353843883,-500.0,0.00016473,2]
[399438535,1766353843892,-555.97636192,0.00016473,2]
[399438536,1766353843902,-500.0,0.00016473,2]
[399438537,1766353843911,-500.0,0.00016473,2]
[399438538,1766353843922,-500.0,0.00016473,2]
[399438539,1766353843931,-182.51229941,0.00016473,2]
[399438540,1766353843940,-500.0,0.00016473,2]
[399438541,1766353843950,-500.0,0.00016473,2]
[399438542,1766353843959,-500.0,0.00016473,2]
[399438543,1766353843969,-500.0,0.00016473,2]
[399438544,1766353843978,-500.0,0.00016473,2]
[399438545,1766353843987,-500.0,0.00016473,2]
[399438546,1766353843997,-500.0,0.00016473,2]
[399438547,1766353844007,-500.0,0.00016473,2]
[399438548,1766353844017,-500.0,0.00016473,2]
[399438549,1766353844026,-500.0,0.00016473,2]
[399438550,1766353844036,-160.18740865,0.00016473,2]
[399438551,1766353844045,-500.0,0.00016473,2]
[399438552,1766353844055,-156.55034948,0.00016473,2]
[399438553,1766353844065,-500.0,0.00016473,2]
[399438554,1766353844074,-162.38378184,0.00016473,2]
[399438555,1766353844084,-160.18741035,0.00016473,2]
[399438556,1766353844094,-150.17482874,0.00016473,2]
[399438557,1766353844103,-500.0,0.00016473,2]
[399438558,1766353844112,-509.1899532,0.00016473,2]
[399438559,1766353844121,-500.0,0.00016473,2]
[399438560,1766353844135,-500.0,0.00016473,2]
[399438561,1766353844144,-500.0,0.00016473,2]
[399438562,1766353844153,-500.0,0.00016473,2]
[399438563,1766353844163,-500.0,0.00016473,2]
[399438564,1766353844172,-500.0,0.00016473,2]
[399438565,1766353844182,-500.0,0.00016473,2]
[399438566,1766353844191,-500.0,0.00016473,2]
[399438567,1766353844200,-180.86165166,0.00016473,2]
[399438568,1766353844210,-164.83274193,0.00016473,2]
[399438569,1766353844219,-500.0,0.00016473,2]
[399438570,1766353844228,-500.0,0.00016473,2]
[399438571,1766353844238,-500.0,0.00016473,2]
[399438572,1766353844248,-506.25214638,0.00016473,2]
[399438573,1766353844257,-160.18477965,0.00016473,2]
[399438574,1766353844267,-500.0,0.00016473,2]
[399438575,1766353844276,-160.18818998,0.00016473,2]
[399438576,1766353844286,-500.0,0.00016473,2]
[399438577,1766353844295,-160.18740865,0.00016473,2]
[399438578,1766353844304,-160.18740865,0.00016473,2]
[399438579,1766353844314,-500.0,0.00016473,2]
[399438580,1766353844323,-500.0,0.00016473,2]
[399438581,1766353844333,-500.0,0.00016473,2]
[399438582,1766353844342,-500.0,0.00016473,2]
[399438583,1766353844352,-530.05316157,0.00016473,2]
[399438584,1766353844361,-565.78797354,0.00016473,2]
[399438585,1766353844371,-207.48820699,0.00016473,2]
[399438586,1766353844380,-500.0,0.00016473,2]
[399438587,1766353844390,-500.0,0.00016473,2]
[399438588,1766353844399,-500.0,0.00016473,2]
[399438589,1766353844409,-500.0,0.00016473,2]
[399438590,1766353844418,-500.0,0.00016473,2]
[399438591,1766353844427,-782.41597286,0.00016475,2]
[399438592,1766353844437,-1501.25804602,0.0001666,2]
[399438593,1766353844446,-199.8712032,0.00016757,2]
[399438594,1766353844455,-833.7673616,0.000168,2]
[399438595,1766353844465,-2129.0,0.00016801,2]
[399438596,1766353844474,-833.76736157,0.0001682,2]
[399438597,1766353844483,-833.76736157,0.0001684,2]
[399438598,1766353844492,-833.76736157,0.0001686,2]
[399438599,1766353844502,-200.0,0.00016863,2]
[399438600,1766353844511,-200.0,0.00016864,2]
[399438601,1766353844520,-200.0,0.00016864,2]
[399438602,1766353844529,-200.0,0.00016864,2]
[399438603,1766353844538,-2473.0,0.00016869,2]
[399438604,1766353844548,-833.76736157,0.0001688,2]
[399438605,1766353844557,-307.67,0.00016889,2]
[399438606,1766353844567,-23647.07950569,0.000169,2]
[399438607,1766353844577,-29862.54378872,0.000169,2]
[399438608,1766353844587,-782.41597286,0.000169,2]
[399438609,1766353844596,-25000.0,0.000169,3]
[399438610,1766353844606,-178.39684581,0.000169,2]
[399438611,1766353844615,-2537.91299639,0.000169,2]
[399438612,1766353844625,-748.2400244,0.000169,2]
[399438613,1766353844635,-256.2489718,0.000169,2]
[399438614,1766353844644,-1170.7357374,0.000169,2]
[399438615,1766353844653,-203.57455078,0.000169,2]
[399438616,1766353844663,-833.76736157,0.000169,2]
[399438617,1766353844673,-9044.0,0.000169,2]
[399438618,1766353844683,-3500.0,0.00016931,2]
[399438619,1766353844692,-3500.0,0.00016931,2]
[399438620,1766353844702,-249634.2537484,0.00016955,2]
[399438621,1766353844711,-81950.5155699,0.00016955,2]
[399438622,1766353844721,-26277.985913,0.00016955,2]
[399438623,1766353844731,-4474.8909504,0.00016955,2]
[399438624,1766353844741,-28211.5846385,0.00016955,2]
[399438625,1766353844750,-150.0,0.00016973,2]
[399438626,1766353844760,-150.0,0.00016973,2]
[399438627,1766353844770,-151.16864998,0.00016983,2]
[399438628,1766353844779,-151.0,0.00016983,2]
[399438629,1766353844789,-52741.43,0.00016986,2]
[399438630,1766353844799,-1962.83301401,0.0001699,2]
[399438631,1766353844808,-1962.83301401,0.0001699,2]
[399438632,1766353844817,-151.0,0.00016997,2]
[399438633,1766353844827,-1101.62355977,0.00016999,5]
[399438634,1766353844836,-1101.62355976,0.00016999,5]
[399438635,1766353844845,-500.0,0.00016999,2]
[399438636,1766353844854,-500.0,0.00016999,2]
[399438637,1766353844864,-500.0,0.00016999,2]
[399438638,1766353844873,-500.0,0.00016999,2]
[399438639,1766353844882,-500.0,0.00016999,2]
[399438640,1766353844891,-500.0,0.00016999,2]
[399438641,1766353844900,-500.0,0.00016999,2]
[399438642,1766353844910,-500.0,0.00016999,2]
[399438643,1766353844920,-500.0,0.00016999,2]
[399438644,1766353844930,-500.0,0.00016999,2]
[399438645,1766353844940,-500.0,0.00016999,2]
[399438646,1766353844949,-500.0,0.00016999,2]
[399438647,1766353844958,-500.0,0.00016999,2]
[399438648,1766353844967,-500.0,0.00016999,2]
[399438649,1766353844976,-500.0,0.00016999,2]
[399438650,1766353844986,-500.0,0.00016999,2]
[399438651,1766353844995,-248.57957861,0.00016999,2]
[399438652,1766353845004,-500.0,0.00016999,2]
[399438653,1766353845014,-300.0,0.00016999,2]
[399438654,1766353845024,-666.0,0.00016999,2]
[399438655,1766353845033,-500.0,0.00016999,2]
[399438656,1766353845044,-300.0,0.00016999,2]
[399438657,1766353845053,-500.0,0.00016999,2]
[399438658,1766353845063,-500.0,0.00016999,2]
[399438659,1766353845072,-500.0,0.00016999,2]
[399438660,1766353845082,-208.04,0.00016999,2]
[399438661,1766353845091,-505.3255501,0.00016999,2]
[399438662,1766353845101,-500.0,0.00016999,2]
[399438663,1766353845110,-300.0,0.00016999,2]
[399438664,1766353845120,-508.98134456,0.00016999,2]
[399438665,1766353845131,-500.0,0.00016999,2]
[399438666,1766353845140,-500.0,0.00016999,2]
[399438667,1766353845150,-500.0,0.00016999,2]
[399438668,1766353845159,-500.0,0.00016999,2]
[399438669,1766353845168,-300.0,0.00016999,2]
[399438670,1766353845178,-666.0,0.00016999,2]
[399438671,1766353845187,-1671863.55932418,0.00017,2]
[399438672,1766353845671,-2968.1,0.00017,2]
[399438673,1766353845683,-9938.86384136,0.00017,2]
[399438674,1766353845700,-7481.91086637,0.00017,2]
[399438675,1766353845737,-283.27,0.00017,2]
[399438676,1766353845821,-2353.88008,0.00017,2]
[399438677,1766353845832,-444.471027,0.00017,2]
[399438678,1766353845842,-1000.0,0.00017,2]
[399438679,1766353845853,-1426.9169098,0.00017,2]
[399438680,1766353845863,-71415.33538319,0.00017,2]
[399438681,1766353845874,-1765.99018171,0.00017,2]
[399438682,1766353845996,-663.7042298,0.00017,2]
[399438683,1766353846011,-4523.48153345,0.00017,2]
[399438684,1766353846022,-1105.61969898,0.00017,2]
[399438685,1766353846033,-644.1737403,0.00017,2]
[399438686,1766353846043,-264.208,0.00017,2]
[399438687,1766353846058,-4791.0,0.00017,2]
[399438688,1766353846082,-453.32660024,0.00017,2]
[399438689,1766353846093,-440.615,0.00017,2]
[399438690,1766353846105,-522.52533801,0.00017,2]
[399438691,1766353846153,-346.739996,0.00017,2]
[399438692,1766353846215,-290.1,0.00017,2]
[399438694,1766353897087,710.1,0.00035616,34]
[399438696,1766353925048,200.0,0.00035616,30]
[399438697,1766353925674,238.1053306,0.00035616,30]
[399438698,1766353926877,500.0,0.00035616,30]
[399438699,1766353927480,500.0,0.00035616,30]
[399438700,1766353927628,642.94,0.00035616,30]
[399438701,1766353927947,520.0,0.00035616,30]
[399438702,1766353928089,500.0,0.00035616,30]
[399438703,1766353929050,227.80937861,0.00035616,30]
[399438704,1766353930262,200.0,0.00035616,30]
[399438705,1766353930877,200.0,0.00035616,30]
[399438706,1766353931475,200.0,0.00035616,30]
[399438707,1766353936081,200.0,0.00035616,30]
[399438708,1766353936272,500.0,0.00035616,30]
[399438709,1766353936907,518.5,0.00035616,30]
[399438710,1766353937174,200.0,0.00035616,30]
[399438711,1766353937517,202.89128059,0.00035616,30]
[399438712,1766353937806,200.0,0.00035616,30]
[399438713,1766353938404,200.0,0.00035616,30]
[399438714,1766353939028,200.0,0.00035616,30]
[399438715,1766353939666,323.33246872,0.00035616,30]
[399438716,1766353939888,414.0,0.00035616,30]
[399438717,1766353940821,429.318,0.00035616,30]
[399438718,1766353941118,445.202766,0.00035616,30]
[399438719,1766353941721,461.67526834,0.00035616,30]
[399438720,1766353942827,478.75725327,0.00035616,30]
[399438721,1766353942952,496.47127164,0.00035616,30]
[399438722,1766353943582,514.84070869,0.00035616,30]
[399438723,1766353944203,533.88981491,0.00035616,30]
[399438724,1766353944942,681.87692132,0.00035616,30]
[399438726,1766354025795,1000.0,0.00035616,120]
[399438727,1766354047406,1000.0,0.00035616,120]
[399438738,1766354226060,500.0,0.00035616,30]
[399438739,1766354226656,518.5,0.00035616,30]
[399438740,1766354227582,537.6845,0.00035616,30]
[399438741,1766354227884,557.5788265,0.00035616,30]
[399438742,1766354228499,520.0,0.00035616,30]
[399438743,1766354228535,252.73090948,0.00035616,30]
[399438745,1766354229102,539.24,0.00035616,30]
[399438746,1766354229683,559.19188,0.00035616,30]
[399438747,1766354230334,579.88197956,0.00035616,30]
[399438748,1766354231218,601.3376128,0.00035616,30]
[399438749,1766354231821,623.58710448,0.00035616,30]
[399438750,1766354232420,751.89418483,0.00035616,30]
[399438751,1766354232623,620.0,0.00035616,30]
[399438752,1766354233243,642.94,0.00035616,30]
[399438753,1766354233865,666.72878,0.00035616,30]
[399438754,1766354234486,691.39774486,0.00035616,30]
[399438755,1766354235093,716.97946142,0.00035616,30]
[399438756,1766354235722,251.58518794,0.00035616,30]
[399438758,1766354250514,200.0,0.00035616,30]
[399438759,1766354251123,207.4,0.00035616,30]
[399438760,1766354251730,215.0738,0.00035616,30]
[399438761,1766354252387,355.28419445,0.00035616,30]
[399438763,1766354367204,153.05,5.575e-05,2]
[399438764,1766354367398,153.05,7.433e-05,2]
[399438765,1766354367614,153.05,9.291e-05,2]
[399438774,1766354497539,733.681,0.00035277,41]
[399438792,1766354940935,1000.0,0.00035615,30]
[399438793,1766354940971,1000.0,0.00035615,30]
[399438794,1766354941024,1000.0,0.00035615,30]
[399438795,1766354942195,1000.0,0.00035276,30]
[399438796,1766354981737,151.0,0.00032545,31]
[399438798,1766354983155,151.0,0.00032545,31]
[399438799,1766354984882,201.438268,0.00032545,31]
[399438801,1766355031823,-163.01963336,0.0001,2]
[399438802,1766355031834,-209.49036762,0.0001,2]
[399438803,1766355031846,-18.57045884,0.0001,2]
[399438804,1766355031855,-250.0,0.00010137,2]
[399438805,1766355031865,-151.0,0.00010266,2]
[399438806,1766355031875,-64.54231616,0.00010268,2]
[399438807,1766355031886,-235.45768384,0.00010268,2]
[399438808,1766355031896,-1200.0,0.00010268,2]
[399438809,1766355031905,-300.0,0.00010268,2]
[399438810,1766355031915,-1618.18596633,0.00010269,2]
[399438811,1766355031927,-1413.25471627,0.00010269,2]
[399438812,1766355031938,-529.36483573,0.00010269,2]
[399438813,1766355031949,-551.1778894,0.00010269,2]
[399438814,1766355031960,-269.84867698,0.00010269,2]
[399438815,1766355031972,-474.202935,0.00010269,2]
[399438816,1766355031983,-500.0,0.00010269,2]
[399438817,1766355031995,-12612.22854361,0.00010269,2]
[399438818,1766355032006,-37603.38950555,0.00010269,2]
[399438819,1766355032020,-273.84430536,0.00010269,2]
[399438820,1766355032031,-6488.50557929,0.00010269,2]
[399438821,1766355032042,-2237.07352637,0.00010269,2]
[399438822,1766355032053,-375.12799992,0.00010269,2]
[399438824,1766355037861,-493.17330366,0.00010268,2]
[399438825,1766355037921,-6.82669634,0.00010268,2]
[399438826,1766355037931,-197.49386433,0.00010268,2]
[399438827,1766355037940,-204.27433702,0.00010268,2]
[399438828,1766355037949,-500.0,0.00010268,2]
[399438829,1766355037958,-500.0,0.00010268,2]
[399438830,1766355037967,-500.0,0.00010268,2]
[399438831,1766355037977,-500.0,0.00010268,2]
[399438832,1766355037986,-500.0,0.00010268,2]
[399438833,1766355037995,-500.0,0.00010268,2]
[399438834,1766355038004,-500.0,0.00010268,2]
[399438835,1766355038013,-500.0,0.00010268,2]
[399438836,1766355038022,-500.0,0.00010268,2]
[399438837,1766355038031,-500.0,0.00010268,2]
[399438838,1766355038041,-500.0,0.00010268,2]
[399438839,1766355038050,-500.0,0.00010268,2]
[399438840,1766355038059,-500.0,0.00010268,2]
[399438841,1766355038068,-500.0,0.00010268,2]
[399438842,1766355038077,-500.0,0.00010268,2]
[399438843,1766355038087,-500.0,0.00010268,2]
[399438844,1766355038096,-500.0,0.00010268,2]
[399438845,1766355038106,-500.0,0.00010268,2]
[399438846,1766355038115,-500.0,0.00010268,2]
[399438847,1766355038124,-500.0,0.00010268,2]
[399438848,1766355038134,-500.0,0.00010268,2]
[399438849,1766355038143,-500.0,0.00010268,2]
[399438850,1766355038152,-500.0,0.00010268,2]
[399438852,1766355038161,-500.0,0.00010268,2]
[399438854,1766355038170,-500.0,0.00010268,2]
[399438855,1766355038179,-500.0,0.00010268,2]
[399438857,1766355038188,-500.0,0.00010268,2]
[399438859,1766355038198,-500.0,0.00010268,2]
[399438860,1766355038209,-500.0,0.00010268,2]
[399438861,1766355038218,-500.0,0.00010268,2]
[399438863,1766355038227,-163.01963335,0.00010269,2]
[399438864,1766355038236,-18743.38547146,0.00010269,2]
[399438867,1766355038248,-583.72879,0.00010269,2]
[399438871,1766355038288,-1998.17129935,0.00010269,2]
[399438874,1766355038308,-16701.58615908,0.00010269,2]
[399438875,1766355038319,-337.11333192,0.00010269,2]
[399438876,1766355038330,-896689.81046838,0.00010269,2]
[399438877,1766355038339,-1200.0,0.00010273,2]
[399438878,1766355038349,-858.1221329,0.00010275,2]
[399438879,1766355038359,-414.83203756,0.00010275,2]
[399438880,1766355038368,-4099.563,0.00010275,2]
[399438881,1766355038377,-7263.0397,0.00010275,2]
[399438882,1766355038387,-2500.0,0.00010275,2]
[399438883,1766355038396,-1000.0,0.0001034,2]
[399438884,1766355038406,-150.0,0.00010367,2]
[399438885,1766355038415,-733.68,0.00010369,2]
[399438886,1766355038425,-299.99,0.00010369,2]
[399438887,1766355038435,-9999.99,0.00010369,2]
[399438888,1766355038444,-289.03,0.00010369,2]
[399438889,1766355038453,-151.0,0.00010369,2]
[399438890,1766355038462,-151.0,0.00010369,2]
[399438891,1766355038472,-151.0,0.00010369,2]
[399438892,1766355038481,-151.0,0.00010369,2]
[399438893,1766355038491,-151.0,0.00010369,2]
[399438894,1766355038504,-151.0,0.00010369,2]
[399438895,1766355038514,-151.0,0.00010369,2]
[399438896,1766355038523,-151.0,0.00010369,2]
[399438897,1766355038532,-151.0,0.00010369,2]
[399438898,1766355038542,-151.0,0.00010369,2]
[399438899,1766355038551,-151.0,0.00010369,2]
[399438900,1766355038560,-151.0,0.00010369,2]
[399438901,1766355038569,-151.0,0.00010369,2]
[399438902,1766355038578,-151.0,0.00010369,2]
[399438903,1766355038588,-151.0,0.00010369,2]
[399438904,1766355038598,-151.0,0.00010369,2]
[399438905,1766355038608,-151.0,0.00010369,2]
[399438906,1766355038618,-151.0,0.00010369,2]
[399438907,1766355038628,-151.0,0.00010369,2]
[399438908,1766355038636,-151.0,0.00010369,2]
[399438909,1766355038645,-2145.07550922,0.00010371,2]
[399438910,1766355038654,-150.99,0.00010371,2]
[399438911,1766355038663,-9999.99,0.00010371,2]
[399438912,1766355038672,-6032.22,0.00010371,2]